fUST/lending_fUST_20250606
["ID","MTS","AMOUNT","RATE_DAILY","PERIOD"]
[364630879,1749168634535,-440.0,0.00019866,2]
[364630880,1749168634545,-440.0,0.00019866,2]
[364630881,1749168634554,-564.52572047,0.00019867,2]
[364630882,1749168634563,-579.75434011,0.00019867,2]
[364630883,1749168634573,-440.0,0.00019867,2]
[364630884,1749168634582,-440.0,0.00019867,2]
[364630885,1749168634591,-440.0,0.00019867,2]
[364630886,1749168634601,-440.0,0.00019867,2]
[364630887,1749168634611,-440.0,0.00019867,2]
[364630888,1749168634620,-451.29587409,0.00019867,2]
[364630889,1749168634629,-440.0,0.00019867,2]
[364630890,1749168634640,-440.0,0.00019867,2]
[364630891,1749168634649,-430.0,0.00019867,2]
[364630892,1749168634659,-440.0,0.00019867,2]
[364630893,1749168634669,-440.0,0.00019867,2]
[364630894,1749168634678,-440.0,0.00019867,2]
[364630895,1749168634688,-513.75333659,0.00019867,2]
[364630896,1749168634697,-440.0,0.00019867,2]
[364630897,1749168634707,-440.0,0.00019867,2]
[364630898,1749168634716,-582.86084402,0.00019867,2]
[364630899,1749168634726,-420.0,0.00019867,2]
[364630900,1749168634735,-440.0,0.00019867,2]
[364630901,1749168634745,-440.0,0.00019867,2]
[364630902,1749168634754,-440.0,0.00019867,2]
[364630903,1749168634764,-440.0,0.00019867,2]
[364630904,1749168634773,-380.0,0.00019867,2]
[364630905,1749168634782,-440.0,0.00019867,2]
[364630906,1749168634792,-440.0,0.00019867,2]
[364630907,1749168634801,-440.0,0.00019867,2]
[364630908,1749168634811,-440.0,0.00019867,2]
[364630909,1749168634820,-440.0,0.00019867,2]
[364630910,1749168634830,-440.0,0.00019867,2]
[364630911,1749168634839,-420.0,0.00019867,2]
[364630912,1749168634849,-440.0,0.00019867,2]
[364630913,1749168634858,-440.0,0.00019867,2]
[364630914,1749168634867,-440.0,0.00019867,2]
[364630915,1749168634877,-440.0,0.00019867,2]
[364630916,1749168634887,-440.0,0.00019867,2]
[364630917,1749168634896,-440.0,0.00019867,2]
[364630918,1749168634908,-440.0,0.00019867,2]
[364630919,1749168634918,-440.0,0.00019867,2]
[364630920,1749168634928,-516.91359683,0.00019867,2]
[364630921,1749168634938,-440.0,0.00019867,2]
[364630922,1749168634947,-440.0,0.00019867,2]
[364630923,1749168634957,-420.0,0.00019867,2]
[364630924,1749168634966,-440.0,0.00019867,2]
[364630925,1749168634974,-420.0,0.00019867,2]
[364630926,1749168634985,-440.0,0.00019867,2]
[364630927,1749168634995,-440.0,0.00019867,2]
[364630928,1749168635004,-440.0,0.00019867,2]
[364630929,1749168635014,-439.92096667,0.00019867,2]
[364630930,1749168635024,-440.0,0.00019867,2]
[364630931,1749168635033,-356.3573306,0.00019867,2]
[364630932,1749168635043,-440.0,0.00019867,2]
[364630933,1749168635052,-440.0,0.00019867,2]
[364630934,1749168635062,-430.0,0.00019867,2]
[364630935,1749168635072,-440.0,0.00019867,2]
[364630936,1749168635081,-440.0,0.00019867,2]
[364630937,1749168635091,-440.0,0.00019867,2]
[364630938,1749168635100,-440.0,0.00019867,2]
[364630939,1749168635109,-440.0,0.00019867,2]
[364630940,1749168635119,-411.21789978,0.00019867,2]
[364630941,1749168635129,-440.0,0.00019867,2]
[364630942,1749168635138,-440.0,0.00019867,2]
[364630943,1749168635150,-440.0,0.00019867,2]
[364630944,1749168635159,-440.0,0.00019867,2]
[364630945,1749168635169,-440.0,0.00019867,2]
[364630946,1749168635179,-400.0,0.00019867,2]
[364630947,1749168635188,-440.0,0.00019867,2]
[364630948,1749168635198,-440.0,0.00019867,2]
[364630949,1749168635208,-440.0,0.00019867,2]
[364630950,1749168635217,-440.0,0.00019867,2]
[364630951,1749168635227,-556.96,0.00019867,2]
[364630952,1749168635238,-440.0,0.00019867,2]
[364630953,1749168635248,-440.0,0.00019868,2]
[364630954,1749168635258,-430.0,0.00019868,2]
[364630955,1749168635267,-183.069,0.00019926,2]
[364630956,1749168635276,-3300.0,0.0002,2]
[364630957,1749168635286,-440.0,0.00020139,2]
[364630958,1749168635297,-440.0,0.00020139,2]
[364630959,1749168635306,-440.0,0.00020139,2]
[364630960,1749168635315,-430.0,0.00020139,2]
[364630961,1749168635324,-440.0,0.00020139,2]
[364630962,1749168635334,-330.22309341,0.00020139,2]
[364630963,1749168635343,-440.0,0.00020139,2]
[364630964,1749168635352,-440.0,0.00020139,2]
[364630965,1749168635362,-462.41655475,0.00020139,2]
[364630966,1749168635371,-332.62714514,0.00020139,2]
[364630967,1749168635381,-410.0,0.00020139,2]
[364630968,1749168635390,-440.0,0.00020139,2]
[364630969,1749168635400,-307.72,0.00020139,2]
[364630970,1749168635409,-440.0,0.00020139,2]
[364630971,1749168635419,-497.0,0.00020139,2]
[364630972,1749168635429,-440.0,0.00020139,2]
[364630973,1749168635439,-460.78,0.00020139,2]
[364630974,1749168635448,-440.0,0.00020139,2]
[364630975,1749168635458,-440.0,0.00020139,2]
[364630976,1749168635468,-430.0,0.00020139,2]
[364630977,1749168635477,-440.0,0.00020139,2]
[364630978,1749168635487,-440.0,0.00020139,2]
[364630979,1749168635497,-440.0,0.00020139,2]
[364630980,1749168635507,-440.0,0.00020139,2]
[364630981,1749168635517,-440.0,0.00020139,2]
[364630982,1749168635526,-440.0,0.00020139,2]
[364630983,1749168635535,-440.0,0.00020139,2]
[364630984,1749168635545,-440.0,0.00020139,2]
[364630985,1749168635556,-768.38,0.00020139,2]
[364630986,1749168635566,-440.0,0.00020139,2]
[364630987,1749168635576,-440.0,0.00020139,2]
[364630988,1749168635586,-440.0,0.00020139,2]
[364630989,1749168635595,-440.0,0.00020139,2]
[364630990,1749168635606,-440.0,0.00020139,2]
[364630991,1749168635615,-440.0,0.00020139,2]
[364630992,1749168635625,-440.0,0.00020139,2]
[364630993,1749168635635,-440.0,0.00020139,2]
[364630994,1749168635644,-440.0,0.00020139,2]
[364630995,1749168635654,-440.0,0.00020139,2]
[364630996,1749168635663,-440.0,0.00020139,2]
[364630997,1749168635673,-440.0,0.0002014,2]
[364630998,1749168635684,-440.0,0.0002014,2]
[364630999,1749168635693,-440.0,0.0002014,2]
[364631000,1749168635702,-440.0,0.0002014,2]
[364631001,1749168635711,-440.0,0.0002014,2]
[364631002,1749168635721,-440.0,0.0002014,2]
[364631003,1749168635730,-440.0,0.0002014,2]
[364631004,1749168635739,-440.0,0.0002014,2]
[364631005,1749168635749,-440.0,0.0002014,2]
[364631006,1749168635758,-440.0,0.0002014,2]
[364631007,1749168635767,-440.0,0.0002014,2]
[364631008,1749168635778,-450.06092932,0.0002014,2]
[364631009,1749168635787,-155.55288919,0.0002014,2]
[364631010,1749168635796,-440.0,0.0002014,2]
[364631011,1749168635805,-440.0,0.0002014,2]
[364631012,1749168635814,-390.0,0.0002014,2]
[364631013,1749168635824,-430.0,0.0002014,2]
[364631014,1749168635833,-440.0,0.0002014,2]
[364631015,1749168635843,-1141.43020283,0.0002014,2]
[364631016,1749168635852,-440.0,0.0002014,2]
[364631017,1749168635862,-440.0,0.0002014,2]
[364631018,1749168635871,-440.0,0.0002014,2]
[364631019,1749168635880,-440.0,0.0002014,2]
[364631020,1749168635890,-440.0,0.0002014,2]
[364631021,1749168635901,-410.9042804,0.0002014,2]
[364631022,1749168635911,-440.0,0.0002014,2]
[364631023,1749168635920,-160.0,0.0002014,2]
[364631024,1749168635930,-440.0,0.0002014,2]
[364631025,1749168635939,-440.0,0.0002014,2]
[364631026,1749168635948,-440.0,0.0002014,2]
[364631027,1749168635958,-440.0,0.0002014,2]
[364631028,1749168635967,-440.0,0.0002014,2]
[364631029,1749168635979,-440.0,0.0002014,2]
[364631030,1749168635989,-440.0,0.0002014,2]
[364631031,1749168635998,-440.0,0.0002014,2]
[364631032,1749168636007,-440.0,0.0002014,2]
[364631033,1749168636017,-447.64339256,0.0002014,2]
[364631034,1749168636026,-440.0,0.0002014,2]
[364631035,1749168636035,-410.0,0.0002014,2]
[364631036,1749168636044,-464.16363501,0.0002014,2]
[364631037,1749168636054,-440.0,0.0002014,2]
[364631038,1749168636063,-283.25438835,0.0002014,2]
[364631039,1749168636073,-440.0,0.0002014,2]
[364631040,1749168636082,-440.0,0.0002014,2]
[364631041,1749168636091,-440.0,0.00020141,2]
[364631042,1749168636100,-578.99546282,0.00020141,2]
[364631043,1749168636110,-440.0,0.00020141,2]
[364631044,1749168636120,-440.0,0.00020141,2]
[364631045,1749168636130,-440.0,0.00020141,2]
[364631046,1749168636140,-242.3,0.00020141,2]
[364631047,1749168636149,-440.0,0.00020141,2]
[364631048,1749168636159,-400.0,0.00020141,2]
[364631049,1749168636169,-440.0,0.00020141,2]
[364631050,1749168636178,-425.85643897,0.00020141,2]
[364631051,1749168636188,-440.0,0.00020141,2]
[364631052,1749168636198,-440.0,0.00020141,2]
[364631053,1749168636207,-440.0,0.00020141,2]
[364631054,1749168636217,-440.0,0.00020141,2]
[364631055,1749168636227,-440.0,0.00020141,2]
[364631056,1749168636238,-440.0,0.00020141,2]
[364631057,1749168636248,-440.0,0.00020141,2]
[364631058,1749168636258,-556.96,0.00020141,2]
[364631059,1749168636268,-440.0,0.00020141,2]
[364631060,1749168636277,-201.670502,0.00020187,2]
[364631061,1749168636286,-235.21071378,0.00020273,2]
[364631062,1749168636296,-500.0,0.00020282,2]
[364631063,1749168636305,-500.0,0.00020321,2]
[364631064,1749168636314,-500.0,0.00020328,2]
[364631065,1749168636324,-500.0,0.00020362,2]
[364631066,1749168636334,-506.3374252,0.00020362,2]
[364631067,1749168636344,-649.69476902,0.00020394,2]
[364631068,1749168636353,-500.99961344,0.00020394,2]
[364631069,1749168636363,-227.37290623,0.00020413,2]
[364631070,1749168636373,-440.0,0.00020413,2]
[364631071,1749168636383,-440.0,0.00020413,2]
[364631072,1749168636393,-440.0,0.00020413,2]
[364631073,1749168636403,-460.78,0.00020413,2]
[364631074,1749168636413,-440.0,0.00020413,2]
[364631075,1749168636423,-440.0,0.00020413,2]
[364631076,1749168636433,-440.0,0.00020413,2]
[364631077,1749168636442,-440.0,0.00020413,2]
[364631078,1749168636452,-440.0,0.00020413,2]
[364631079,1749168636462,-440.0,0.00020413,2]
[364631080,1749168636472,-440.0,0.00020413,2]
[364631081,1749168636481,-440.0,0.00020413,2]
[364631082,1749168636491,-238.8,0.00020413,2]
[364631083,1749168636501,-768.38,0.00020413,2]
[364631084,1749168636510,-262.54,0.00020413,2]
[364631085,1749168636520,-440.0,0.00020413,2]
[364631086,1749168636529,-440.0,0.00020413,2]
[364631087,1749168636539,-440.0,0.00020413,2]
[364631088,1749168636548,-440.0,0.00020413,2]
[364631089,1749168636558,-440.0,0.00020413,2]
[364631090,1749168636567,-440.0,0.00020413,2]
[364631091,1749168636577,-440.0,0.00020413,2]
[364631092,1749168636587,-420.0,0.00020413,2]
[364631093,1749168636597,-440.0,0.00020413,2]
[364631094,1749168636606,-440.0,0.00020414,2]
[364631095,1749168636615,-440.0,0.00020414,2]
[364631096,1749168636625,-440.0,0.00020414,2]
[364631097,1749168636645,-440.0,0.00020414,2]
[364631098,1749168636655,-440.0,0.00020414,2]
[364631099,1749168636665,-440.0,0.00020414,2]
[364631100,1749168636676,-310.80096579,0.00020414,2]
[364631101,1749168636686,-440.0,0.00020414,2]
[364631102,1749168636696,-440.0,0.00020414,2]
[364631103,1749168636706,-440.0,0.00020414,2]
[364631104,1749168636716,-440.0,0.00020414,2]
[364631105,1749168636727,-440.0,0.00020414,2]
[364631106,1749168636737,-440.0,0.00020414,2]
[364631107,1749168636746,-440.0,0.00020414,2]
[364631108,1749168636756,-430.0,0.00020414,2]
[364631109,1749168636765,-565.21645238,0.00020414,2]
[364631110,1749168636776,-440.0,0.00020414,2]
[364631111,1749168636786,-440.0,0.00020414,2]
[364631112,1749168636796,-440.0,0.00020414,2]
[364631113,1749168636805,-440.0,0.00020414,2]
[364631114,1749168636944,-477.5557266,0.00020415,2]
[364631115,1749168636954,-440.0,0.00020415,2]
[364631116,1749168636963,-440.0,0.00020415,2]
[364631117,1749168636972,-440.0,0.00020415,2]
[364631118,1749168636984,-440.0,0.00020415,2]
[364631119,1749168636993,-440.0,0.00020415,2]
[364631120,1749168637002,-440.0,0.00020415,2]
[364631121,1749168637011,-556.96,0.00020415,2]
[364631122,1749168637023,-440.0,0.00020415,2]
[364631123,1749168637033,-514.96168939,0.00020468,2]
[364631124,1749168637043,-500.0,0.00020488,2]
[364631125,1749168637052,-440.0,0.00020687,2]
[364631126,1749168637061,-440.0,0.00020687,2]
[364631127,1749168637071,-460.78,0.00020687,2]
[364631128,1749168637080,-420.0,0.00020687,2]
[364631129,1749168637089,-440.0,0.00020687,2]
[364631130,1749168637099,-410.0,0.00020687,2]
[364631131,1749168637108,-410.0,0.00020687,2]
[364631132,1749168637117,-238.15,0.00020687,2]
[364631133,1749168637126,-587.82102879,0.00020687,2]
[364631134,1749168637135,-440.0,0.00020687,2]
[364631135,1749168637145,-768.38,0.00020687,2]
[364631136,1749168637154,-440.0,0.00020687,2]
[364631137,1749168637164,-440.0,0.00020687,2]
[364631138,1749168637173,-440.0,0.00020687,2]
[364631139,1749168637183,-440.0,0.00020687,2]
[364631140,1749168637192,-400.0,0.00020687,2]
[364631141,1749168637201,-440.0,0.00020687,2]
[364631142,1749168637210,-440.0,0.00020687,2]
[364631143,1749168637220,-440.0,0.00020688,2]
[364631144,1749168637229,-440.0,0.00020688,2]
[364631145,1749168637240,-440.0,0.00020688,2]
[364631146,1749168637249,-440.0,0.00020688,2]
[364631147,1749168637259,-440.0,0.00020688,2]
[364631148,1749168637268,-440.0,0.00020688,2]
[364631149,1749168637278,-410.0,0.00020688,2]
[364631150,1749168637288,-440.0,0.00020688,2]
[364631151,1749168637298,-440.0,0.00020688,2]
[364631152,1749168637307,-440.0,0.00020688,2]
[364631153,1749168637316,-440.0,0.00020688,2]
[364631154,1749168637326,-440.0,0.00020688,2]
[364631155,1749168637336,-440.0,0.00020688,2]
[364631156,1749168637346,-440.0,0.00020688,2]
[364631157,1749168637355,-440.0,0.00020688,2]
[364631158,1749168637367,-440.0,0.00020688,2]
[364631159,1749168637376,-440.0,0.00020689,2]
[364631160,1749168637386,-440.0,0.00020689,2]
[364631161,1749168637395,-440.0,0.00020689,2]
[364631162,1749168637405,-410.0,0.00020689,2]
[364631163,1749168637414,-440.0,0.00020689,2]
[364631164,1749168637425,-556.96,0.00020689,2]
[364631165,1749168637435,-440.0,0.00020689,2]
[364631166,1749168637444,-691.44,0.000207,2]
[364631167,1749168637454,-155.0,0.00020829,2]
[364631168,1749168637463,-1000.0,0.0002083,2]
[364631169,1749168637472,-669.11646409,0.000209,4]
[364631170,1749168637483,-440.0,0.00020961,2]
[364631171,1749168637493,-460.78,0.00020961,2]
[364631174,1749168637503,-440.0,0.00020961,2]
[364631176,1749168637512,-440.0,0.00020961,2]
[364631178,1749168637521,-768.38,0.00020961,2]
[364631179,1749168637531,-440.0,0.00020961,2]
[364631181,1749168637540,-476.36,0.00020961,2]
[364631182,1749168637550,-440.0,0.00020961,2]
[364631184,1749168637561,-440.0,0.00020961,2]
[364631185,1749168637570,-440.0,0.00020961,2]
[364631186,1749168637579,-440.0,0.00020961,2]
[364631187,1749168637588,-440.0,0.00020962,2]
[364631189,1749168637598,-440.0,0.00020962,2]
[364631190,1749168637607,-440.0,0.00020962,2]
[364631193,1749168637616,-440.0,0.00020962,2]
[364631194,1749168637625,-440.0,0.00020962,2]
[364631195,1749168637636,-440.0,0.00020962,2]
[364631197,1749168637645,-440.0,0.00020962,2]
[364631198,1749168637654,-539.37,0.00020962,2]
[364631199,1749168637664,-440.0,0.00020963,2]
[364631200,1749168637674,-443.53,0.00020963,2]
[364631201,1749168637683,-538.52,0.00020963,2]
[364631202,1749168637692,-556.96,0.00020963,2]
[364631203,1749168637703,-440.0,0.00020963,2]
[364631204,1749168637714,-229.48950782,0.00020999,2]
[364631205,1749168637723,-160.0,0.00020999,2]
[364631206,1749168637732,-5863.09078904,0.00020999,2]
[364631216,1749168638020,-440.0,0.00019865,2]
[364631218,1749168638030,-440.0,0.00019865,2]
[364631220,1749168638039,-4.72190798,0.0002014,2]
[364631222,1749168638050,-435.27809202,0.0002014,2]
[364631224,1749168638060,-440.0,0.00020414,2]
[364631227,1749168638070,-440.0,0.00020688,2]
[364631228,1749168638079,-6812.02502273,0.00020999,2]
[364631229,1749168638088,-212.94059491,0.00021,2]
[364631230,1749168638098,-423.7637613,0.00021,2]
[364631231,1749168638107,-160.0,0.00021,2]
[364631232,1749168638117,-669.11646402,0.00021038,4]
[364631233,1749168638126,-669.11646402,0.00021176,4]
[364631234,1749168638136,-175.81,0.00021226,10]
[364631235,1749168638147,-460.78,0.00021235,2]
[364631236,1749168638156,-440.0,0.00021235,2]
[364631237,1749168638166,-768.38,0.00021235,2]
[364631238,1749168638176,-440.0,0.00021235,2]
[364631239,1749168638186,-440.0,0.00021235,2]
[364631240,1749168638195,-390.0,0.00021235,2]
[364631241,1749168638205,-440.0,0.00021235,2]
[364631242,1749168638215,-392.49,0.00021236,2]
[364631243,1749168638224,-440.0,0.00021236,2]
[364631244,1749168638233,-6188.07807662,0.00021237,2]
[364631245,1749168638244,-440.0,0.00021237,2]
[364631246,1749168638253,-556.96,0.00021237,2]
[364631247,1749168638263,-440.0,0.00021237,2]
[364631248,1749168638273,-150.0,0.000213,2]
[364631249,1749168638283,-2124.61,0.000213,2]
[364631250,1749168638293,-669.11646402,0.00021314,5]
[364631251,1749168638302,-1090.67673037,0.00021377,2]
[364631252,1749168638312,-669.11646402,0.00021452,5]
[364631253,1749168638322,-460.78,0.00021509,2]
[364631254,1749168638331,-440.0,0.00021509,2]
[364631255,1749168638341,-768.38,0.00021509,2]
[364631256,1749168638350,-440.0,0.00021509,2]
[364631257,1749168638360,-440.0,0.00021509,2]
[364631258,1749168638369,-440.0,0.00021509,2]
[364631259,1749168638379,-160.0,0.0002151,2]
[364631260,1749168638387,-440.0,0.0002151,2]
[364631261,1749168638397,-440.0,0.00021511,2]
[364631262,1749168638407,-556.96,0.00021511,2]
[364631263,1749168638418,-440.0,0.00021511,2]
[364631264,1749168638428,-669.11646402,0.0002159,5]
[364631265,1749168638438,-420.0,0.00021633,2]
[364631266,1749168638447,-669.11646402,0.00021728,5]
[364631267,1749168638457,-460.78,0.00021783,2]
[364631268,1749168638467,-440.0,0.00021783,2]
[364631269,1749168638477,-768.38,0.00021783,2]
[364631270,1749168638487,-561.09,0.00021783,2]
[364631271,1749168638496,-440.0,0.00021783,2]
[364631272,1749168638505,-440.0,0.00021783,2]
[364631273,1749168638515,-440.0,0.00021784,2]
[364631274,1749168638525,-440.0,0.00021785,2]
[364631275,1749168638534,-556.96,0.00021785,2]
[364631276,1749168638543,-462.86258664,0.00021785,2]
[364631277,1749168638553,-341.13839968,0.00021866,6]
[364631278,1749168638566,-327.97806434,0.00021866,6]
[364631279,1749168638576,-440.0,0.00021917,2]
[364631280,1749168638586,-207.4,0.00021942,2]
[364631281,1749168638595,-137865.99,0.00022,7]
[364631282,1749168638605,-669.11646402,0.00022003,6]
[364631283,1749168638614,-460.78,0.00022057,2]
[364631284,1749168638623,-440.0,0.00022057,2]
[364631285,1749168638633,-768.38,0.00022057,2]
[364631286,1749168638642,-440.0,0.00022057,2]
[364631287,1749168638652,-440.0,0.00022057,2]
[364631288,1749168638662,-440.0,0.00022058,2]
[364631289,1749168638674,-555.82,0.00022059,2]
[364631290,1749168638683,-556.96,0.00022059,2]
[364631291,1749168638693,-669.11646402,0.00022141,6]
[364631292,1749168638702,-1770.04479724,0.000222,69]
[364631293,1749168638711,-669.11646402,0.00022279,6]
[364631294,1749168638721,-460.78,0.00022331,2]
[364631295,1749168638730,-242.33,0.00022331,2]
[364631296,1749168638739,-768.38,0.00022331,2]
[364631297,1749168638749,-440.0,0.00022331,2]
[364631298,1749168638758,-440.0,0.00022331,2]
[364631299,1749168638767,-440.0,0.00022332,2]
[364631300,1749168638777,-556.96,0.00022333,2]
[364631301,1749168638786,-669.11646402,0.00022417,7]
[364631302,1749168638795,-1753.85,0.00022456,2]
[364631303,1749168638805,-669.11646402,0.00022555,7]
[364631304,1749168638814,-3000.0,0.00022589,2]
[364631305,1749168638824,-460.78,0.00022605,2]
[364631306,1749168638834,-768.38,0.00022605,2]
[364631307,1749168638843,-440.0,0.00022605,2]
[364631308,1749168638852,-440.0,0.00022605,2]
[364631309,1749168638862,-440.0,0.00022606,2]
[364631310,1749168638871,-556.96,0.00022607,2]
[364631311,1749168638881,-3000.0,0.00022646,2]
[364631312,1749168638891,-600.0,0.0002268,2]
[364631313,1749168638902,-669.11646402,0.00022693,7]
[364631314,1749168638912,-691.44,0.000227,7]
[364631315,1749168638921,-2124.61,0.000227,7]
[364631316,1749168638930,-2000.0,0.00022748,2]
[364631317,1749168638939,-669.11646402,0.00022831,8]
[364631318,1749168638949,-2000.0,0.00022862,3]
[364631319,1749168638958,-460.78,0.00022879,2]
[364631320,1749168638970,-768.38,0.00022879,2]
[364631321,1749168638985,-440.0,0.00022879,2]
[364631322,1749168638999,-440.0,0.00022879,2]
[364631323,1749168639010,-292.87985933,0.0002288,2]
[364631324,1749168639021,-440.0,0.0002288,2]
[364631325,1749168639030,-556.96,0.00022881,2]
[364631326,1749168639039,-2000.0,0.00022948,3]
[364631327,1749168639049,-669.11646402,0.00022969,8]
[364631328,1749168639058,-224.0,0.00023,7]
[364631329,1749168639069,-2000.0,0.00023086,3]
[364631330,1749168639078,-669.11646402,0.00023107,8]
[364631331,1749168639088,-460.78,0.00023153,2]
[364631332,1749168639097,-768.38,0.00023153,2]
[364631333,1749168639106,-440.0,0.00023153,2]
[364631334,1749168639116,-440.0,0.00023153,2]
[364631335,1749168639125,-440.0,0.00023154,2]
[364631336,1749168639135,-556.96,0.00023155,2]
[364631337,1749168639146,-500.0,0.00023199,2]
[364631338,1749168639155,-500.0,0.00023199,2]
[364631339,1749168639165,-500.0,0.00023199,2]
[364631340,1749168639175,-483.49593379,0.00023199,2]
[364631341,1749168639185,-137865.99,0.000232,7]
[364631342,1749168639195,-669.11646402,0.00023245,8]
[364631343,1749168639204,-215.0738,0.00023311,2]
[364631344,1749168639214,-364.5107659,0.00023342,2]
[364631345,1749168639223,-669.11646402,0.00023383,9]
[364631346,1749168639233,-460.78,0.00023427,2]
[364631347,1749168639243,-768.38,0.00023427,2]
[364631348,1749168639252,-264.48,0.00023427,2]
[364631349,1749168639262,-440.0,0.00023427,2]
[364631350,1749168639271,-440.0,0.00023428,2]
[364631351,1749168639282,-556.96,0.00023429,2]
[364631352,1749168639291,-306.0,0.00023479,2]
[364631353,1749168639300,-158.5442955,0.00023479,2]
[364631354,1749168639400,-669.11646402,0.00023521,9]
[364631355,1749168639411,-500.0,0.0002365,2]
[364631356,1749168639421,-669.11646402,0.00023659,9]
[364631357,1749168639431,-460.78,0.00023701,2]
[364631358,1749168639441,-768.38,0.00023701,2]
[364631359,1749168639451,-502.99516723,0.00023701,2]
[364631360,1749168639461,-440.0,0.00023702,2]
[364631361,1749168639471,-556.96,0.00023703,2]
[364631362,1749168639481,-311.4322408,0.00023753,2]
[364631363,1749168639490,-405.0,0.0002377,2]
[364631364,1749168639500,-669.11646402,0.00023797,9]
[364631365,1749168639509,-561.888697,0.00023814,3]
[364631366,1749168639519,-151.0,0.000239,6]
[364631367,1749168639529,-211.60875242,0.000239,2]
[364631368,1749168639540,-669.11646402,0.00023934,10]
[364631369,1749168639549,-460.78,0.00023975,2]
[364631370,1749168639558,-768.38,0.00023975,2]
[364631371,1749168639567,-440.0,0.00023976,2]
[364631372,1749168639576,-556.96,0.00023977,2]
[364631373,1749168639586,-2124.61,0.00024,7]
[364631374,1749168639596,-669.11646402,0.00024072,10]
[364631375,1749168639605,-800.0,0.00024092,2]
[364631376,1749168639614,-1421.32,0.000241,30]
[364631377,1749168639624,-203.22942804,0.00024206,2]
[364631378,1749168639633,-203.229428,0.00024207,2]
[364631380,1749168639643,-203.229428,0.00024209,2]
[364631382,1749168639652,-203.229428,0.0002421,2]
[364631383,1749168639661,-669.11646402,0.0002421,10]
[364631384,1749168639672,-203.229428,0.00024211,2]
[364631386,1749168639681,-172.80492962,0.00024211,2]
[364631387,1749168639691,-460.78,0.00024249,2]
[364631389,1749168639700,-768.38,0.00024249,2]
[364631390,1749168639710,-440.0,0.0002425,2]
[364631392,1749168639719,-556.96,0.00024251,2]
[364631393,1749168639729,-5000.0,0.00024259,30]
[364631395,1749168639739,-5000.0,0.00024259,30]
[364631396,1749168639749,-5000.0,0.00024259,30]
[364631398,1749168639759,-5000.0,0.00024259,30]
[364631399,1749168639769,-5000.0,0.00024259,30]
[364631400,1749168639779,-5000.0,0.00024259,30]
[364631402,1749168639789,-5000.0,0.00024259,30]
[364631403,1749168639798,-5000.0,0.00024259,30]
[364631405,1749168639807,-5000.0,0.00024259,30]
[364631406,1749168639816,-5000.0,0.00024259,30]
[364631409,1749168639826,-1826.33,0.00024259,30]
[364631410,1749168639835,-10549.72467,0.00024294,2]
[364631412,1749168639844,-150.0,0.00024297,2]
[364631413,1749168639854,-962.0,0.00024297,2]
[364631416,1749168639863,-709.0,0.00024297,2]
[364631418,1749168639873,-2196.0,0.00024297,2]